lending/lending_fUSD_20240604
["ID","MTS","AMOUNT","RATE_DAILY","PERIOD"]
[328553905,1717528251470,-1002.44274149,0.0002903,2]
[328553937,1717529125997,155.0,0.00029,90]
[328553979,1717529432039,-327.68541616,0.00015966,2]
[328553980,1717529432205,-299.16649425,0.00015966,2]
[328553981,1717529432216,-63.16788381,0.00015966,2]
[328553982,1717529432226,-718.75874464,0.00015967,2]
[328553983,1717529432235,-1336.24907155,0.00015967,2]
[328553984,1717529432247,-4427.30363913,0.00015967,2]
[328553985,1717529432259,-3451.14700836,0.00015967,2]
[328553986,1717529432268,-1047.680114,0.00015968,2]
[328553987,1717529432277,-150.0,0.00016644,2]
[328553988,1717529432286,-2089.57287764,0.00016646,2]
[328553989,1717529432298,-6667.68257532,0.00016646,2]
[328553990,1717529432307,-1790.00464579,0.00016647,2]
[328553993,1717529432316,-312.94,0.0001726,2]
[328553996,1717529432325,-156.44858283,0.00017435,2]
[328553999,1717529432333,-4821.74,0.00017435,2]
[328554003,1717529432342,-1557.96,0.00017435,2]
[328554007,1717529432351,-266.32,0.00017435,2]
[328554010,1717529432360,-442.83120925,0.00017436,2]
[328554012,1717529432369,-150.99,0.00017436,2]
[328554014,1717529432378,-62032.7812,0.00017437,2]
[328554016,1717529432387,-937.27,0.00017437,2]
[328554018,1717529432396,-4572.5052,0.00017495,2]
[328554019,1717529432406,-362.81,0.00017563,2]
[328554022,1717529432415,-21261.5124,0.00017578,2]
[328554024,1717529432424,-465.94,0.00017578,2]
[328554025,1717529432433,-38190.1845,0.00017595,2]
[328554027,1717529432442,-23872.2212,0.00017595,2]
[328554029,1717529432451,-499.99,0.00017595,2]
[328554031,1717529432460,-996.73146164,0.00017807,2]
[328554033,1717529432469,-1303.13,0.0001793,2]
[328554035,1717529432479,-9328.91706612,0.00018,2]
[328554037,1717529432488,-23880.0,0.0001827,2]
[328554039,1717529432497,-210.0,0.00018308,2]
[328554040,1717529432506,-250.0,0.00018593,2]
[328554041,1717529432515,-150.0,0.00018834,2]
[328554042,1717529432525,-362.81,0.00019827,2]
[328554044,1717529432535,-210.2,0.00019829,2]
[328554045,1717529432544,-1979.48660224,0.0002,2]
[328554047,1717529432553,-200.0,0.0002006,2]
[328554049,1717529432563,-362.81,0.00022091,2]
[328554050,1717529432573,-1880.95,0.00022094,2]
[328554051,1717529432582,-186.69,0.00023314,2]
[328554052,1717529432591,-1000.0,0.00023371,2]
[328554053,1717529432600,-186.69,0.00023719,2]
[328554054,1717529432610,-250.0,0.00024081,2]
[328554055,1717529432619,-186.69,0.00024124,2]
[328554056,1717529432628,-168.07,0.00024297,2]
[328554057,1717529432637,-362.81,0.00024355,2]
[328554058,1717529432646,-161.8,0.00024384,2]
[328554059,1717529432655,-186.69,0.00024529,2]
[328554060,1717529432664,-1510.2152,0.00024599,2]
[328554061,1717529432674,-891.06045548,0.00024798,2]
[328554062,1717529432683,-891.06045541,0.00024798,2]
[328554063,1717529432693,-891.06045541,0.00024798,2]
[328554064,1717529432702,-891.06045541,0.00024798,2]
[328554065,1717529432712,-891.06045541,0.00024798,2]
[328554066,1717529432721,-891.06045541,0.00024798,2]
[328554067,1717529432731,-167.60016188,0.00024799,2]
[328554068,1717529432739,-167.60016184,0.00024799,2]
[328554069,1717529432748,-167.60016184,0.00024799,2]
[328554070,1717529432758,-167.60016184,0.00024799,2]
[328554071,1717529432768,-167.60016184,0.00024799,2]
[328554072,1717529432777,-167.60016184,0.00024799,2]
[328554073,1717529432791,-1880.95,0.00024833,2]
[328554074,1717529432801,-2000.0,0.00025042,3]
[328554075,1717529432811,-891.06045541,0.00025765,2]
[328554076,1717529432821,-167.60016184,0.00025765,2]
[328554077,1717529432831,-1000.0,0.00026292,2]
[328554078,1717529432841,-362.81,0.00026619,2]
[328554079,1717529432850,-165.61,0.00027013,2]
[328554080,1717529432861,-165.61,0.0002708,2]
[328554081,1717529432871,-891.06045541,0.00027143,2]
[328554082,1717529432880,-167.60016184,0.00027143,2]
[328554083,1717529432890,-165.61,0.00027148,2]
[328554084,1717529432900,-872.42,0.00027211,2]
[328554085,1717529432909,-872.42,0.00027211,2]
[328554086,1717529432919,-872.42,0.00027211,2]
[328554087,1717529432928,-872.42,0.00027211,2]
[328554088,1717529432937,-200.0,0.00027212,2]
[328554089,1717529432947,-500.0,0.00027212,2]
[328554090,1717529432956,-416.87,0.00027213,2]
[328554091,1717529432965,-1742.5,0.00027213,2]
[328554092,1717529432974,-416.87,0.00027213,2]
[328554093,1717529432983,-414.78,0.00027213,2]
[328554094,1717529432992,-1880.95,0.00027573,2]
[328554095,1717529433002,-3814.0,0.000276,2]
[328554096,1717529433011,-155.0,0.00027944,2]
[328554097,1717529433021,-155.0,0.00027944,2]
[328554098,1717529433031,-192.47,0.00027944,2]
[328554099,1717529433040,-468.40220737,0.00028,2]
[328554100,1717529433049,-2050.29,0.00028072,2]
[328554101,1717529433059,-872.42,0.0002817,2]
[328554102,1717529433070,-1576.25,0.0002817,2]
[328554103,1717529433079,-384.09,0.00028239,2]
[328554104,1717529433088,-422.1,0.00028239,2]
[328554105,1717529433098,-150.0,0.00028239,2]
[328554106,1717529433107,-162.82,0.00028239,2]
[328554107,1717529433116,-150.0,0.00028239,2]
[328554108,1717529433125,-163.99,0.00028239,2]
[328554109,1717529433135,-150.0,0.00028239,2]
[328554110,1717529433144,-422.1,0.00028239,2]
[328554111,1717529433153,-352.96,0.00028239,2]
[328554112,1717529433162,-150.0,0.00028239,2]
[328554113,1717529433171,-422.1,0.00028239,2]
[328554114,1717529433180,-150.0,0.00028239,2]
[328554115,1717529433189,-150.0,0.00028239,2]
[328554116,1717529433198,-163.99,0.00028239,2]
[328554117,1717529433207,-352.96,0.00028239,2]
[328554118,1717529433216,-150.0,0.00028239,2]
[328554119,1717529433225,-150.0,0.00028239,2]
[328554120,1717529433234,-150.0,0.00028239,2]
[328554121,1717529433244,-422.1,0.00028239,2]
[328554122,1717529433253,-352.96,0.00028239,2]
[328554123,1717529433262,-163.99,0.00028239,2]
[328554124,1717529433271,-150.0,0.00028239,2]
[328554125,1717529433281,-150.0,0.00028239,2]
[328554126,1717529433290,-163.99,0.00028239,2]
[328554127,1717529433300,-150.0,0.00028239,2]
[328554128,1717529433309,-352.96,0.00028239,2]
[328554129,1717529433320,-422.1,0.00028239,2]
[328554130,1717529433329,-422.1,0.00028239,2]
[328554131,1717529433338,-352.96,0.00028239,2]
[328554132,1717529433348,-150.0,0.00028239,2]
[328554133,1717529433358,-150.0,0.00028239,2]
[328554134,1717529433368,-163.99,0.00028239,2]
[328554135,1717529433378,-422.1,0.00028239,2]
[328554136,1717529433387,-163.99,0.00028239,2]
[328554137,1717529433397,-150.0,0.00028239,2]
[328554138,1717529433406,-352.96,0.00028239,2]
[328554139,1717529433416,-150.0,0.00028239,2]
[328554140,1717529433425,-150.0,0.00028239,2]
[328554141,1717529433435,-150.0,0.00028239,2]
[328554142,1717529433444,-422.1,0.00028239,2]
[328554143,1717529433454,-352.96,0.00028239,2]
[328554144,1717529433464,-163.99,0.00028239,2]
[328554145,1717529433473,-285.67,0.00028239,2]
[328554146,1717529433484,-352.96,0.00028239,2]
[328554147,1717529433493,-150.0,0.00028239,2]
[328554148,1717529433503,-163.99,0.00028239,2]
[328554149,1717529433512,-162.56,0.00028239,2]
[328554150,1717529433522,-270.83,0.00028239,2]
[328554151,1717529433532,-150.0,0.00028401,2]
[328554152,1717529433542,-891.06045541,0.00028522,2]
[328554153,1717529433553,-167.60016184,0.00028522,2]
[328554154,1717529433563,-2697.29,0.00028584,2]
[328554155,1717529433576,-525.61439,0.0002874,2]
[328554156,1717529433587,-500.0,0.00028797,2]
[328554157,1717529433596,-3488.66838985,0.000288,2]
[328554158,1717529433606,-362.81,0.00028883,2]
[328554159,1717529433616,-700.0,0.000289,10]
[328554160,1717529433626,-322.96517181,0.00028931,2]
[328554161,1717529433636,-2791.12,0.00028998,6]
[328554162,1717529433646,-488.0,0.00029,13]
[328554163,1717529433655,-345.0,0.00029,2]
[328554164,1717529433666,-22500.0,0.00029,5]
[328554165,1717529433676,-26821.43949291,0.00029,5]
[328554166,1717529433690,-425.4028204,0.00029,5]
[328554167,1717529433703,-635.97483763,0.00029,5]
[328554168,1717529433716,-299.99,0.00029,5]
[328554169,1717529433728,-6817.19284906,0.00029,5]
[328554170,1717529433738,-1400.0,0.00029,10]
[328554171,1717529433748,-1500.0,0.00029,2]
[328554172,1717529433758,-150.0,0.00029,6]
[328554173,1717529433767,-412.75360643,0.00029012,2]
[328554174,1717529433778,-26532.2895896,0.00029021,2]
[328554175,1717529433790,-6981.7386623,0.00029021,2]
[328554176,1717529433799,-24007.6357463,0.00029021,2]
[328554177,1717529433808,-1142.0571443,0.00029021,2]
[328554178,1717529433818,-4901.19931,0.00029021,2]
[328554179,1717529433828,-417.73189809,0.00029029,2]
[328554180,1717529433837,-694.63902191,0.0002903,2]
[328554181,1717529433847,-500.0,0.0002903,2]
[328554182,1717529433857,-500.0,0.0002903,2]
[328554183,1717529433868,-500.0,0.0002903,2]
[328554184,1717529433878,-500.0,0.0002903,2]
[328554185,1717529433887,-500.0,0.0002903,2]
[328554186,1717529433896,-500.0,0.0002903,2]
[328554187,1717529433906,-500.0,0.0002903,2]
[328554188,1717529433915,-500.0,0.0002903,2]
[328554189,1717529433925,-500.0,0.0002903,2]
[328554190,1717529433934,-500.0,0.0002903,2]
[328554191,1717529433943,-500.0,0.0002903,2]
[328554192,1717529433952,-500.0,0.0002903,2]
[328554193,1717529433962,-500.0,0.0002903,2]
[328554194,1717529433972,-500.0,0.0002903,2]
[328554195,1717529433981,-500.0,0.0002903,2]
[328554196,1717529433991,-500.0,0.0002903,2]
[328554197,1717529434000,-500.0,0.0002903,2]
[328554198,1717529434010,-500.0,0.0002903,2]
[328554199,1717529434020,-500.0,0.0002903,2]
[328554200,1717529434029,-15578.7926,0.0002903,2]
[328554201,1717529434039,-3746.1888,0.0002903,2]
[328554202,1717529434049,-7500.0,0.0002903,2]
[328554203,1717529434059,-151.75497239,0.00029031,2]
[328554204,1717529434070,-176.335225,0.00029061,2]
[328554205,1717529434080,-2944.941733,0.00029061,2]
[328554206,1717529434090,-168.227442,0.00029061,2]
[328554207,1717529434099,-905.861396,0.00029061,2]
[328554208,1717529434109,-2369.454403,0.00029061,2]
[328554209,1717529434118,-150.0,0.00029071,2]
[328554210,1717529434128,-150.0,0.00029072,2]
[328554211,1717529434137,-150.0,0.00029076,2]
[328554212,1717529434146,-150.0,0.00029082,2]
[328554213,1717529434156,-150.0,0.00029082,2]
[328554214,1717529434165,-150.0,0.00029089,2]
[328554215,1717529434174,-150.0,0.00029094,2]
[328554216,1717529434184,-2200.0,0.000291,10]
[328554217,1717529434193,-150.0,0.00029101,2]
[328554218,1717529434203,-150.0,0.00029102,2]
[328554219,1717529434212,-150.0,0.00029103,2]
[328554220,1717529434222,-150.0,0.00029108,2]
[328554221,1717529434231,-150.0,0.00029129,2]
[328554222,1717529434242,-155.32,0.00029129,2]
[328554223,1717529434252,-150.0,0.00029129,2]
[328554224,1717529434261,-172822.36141722,0.0002913,10]
[328554225,1717529434271,-45815.78814677,0.0002913,10]
[328554226,1717529434281,-150.0,0.00029131,2]
[328554227,1717529434292,-278.92,0.00029131,2]
[328554228,1717529434302,-525.7,0.00029131,2]
[328554229,1717529434314,-525.7,0.00029131,2]
[328554230,1717529434324,-150.0,0.00029131,2]
[328554231,1717529434333,-150.0,0.00029131,2]
[328554232,1717529434343,-948.82,0.00029131,2]
[328554233,1717529434353,-150.0,0.00029131,2]
[328554234,1717529434363,-150.0,0.00029131,2]
[328554235,1717529434373,-525.7,0.00029131,2]
[328554236,1717529434382,-525.7,0.00029131,2]
[328554237,1717529434392,-163.99,0.00029131,2]
[328554238,1717529434402,-352.49,0.00029131,2]
[328554239,1717529434412,-400.8,0.00029131,2]
[328554240,1717529434422,-525.7,0.00029131,2]
[328554241,1717529434431,-163.99,0.00029131,2]
[328554242,1717529434441,-525.7,0.00029131,2]
[328554243,1717529434451,-324.82,0.00029131,2]
[328554244,1717529434461,-525.7,0.00029131,2]
[328554245,1717529434470,-525.7,0.00029131,2]
[328554246,1717529434480,-150.0,0.00029135,2]
[328554247,1717529434490,-1500.0,0.00029145,2]
[328554248,1717529434500,-150.0,0.00029147,2]
[328554249,1717529434510,-1500.0,0.00029153,2]
[328554250,1717529434520,-150.0,0.00029155,2]
[328554251,1717529434529,-150.0,0.00029155,2]
[328554252,1717529434539,-150.0,0.00029155,2]
[328554253,1717529434549,-150.0,0.00029158,2]
[328554254,1717529434558,-150.0,0.00029158,2]
[328554255,1717529434569,-150.0,0.00029161,2]
[328554256,1717529434578,-150.0,0.00029162,2]
[328554257,1717529434590,-150.0,0.00029169,2]
[328554258,1717529434601,-150.0,0.00029169,2]
[328554259,1717529434611,-150.0,0.00029171,2]
[328554260,1717529434622,-150.0,0.00029174,2]
[328554261,1717529434631,-150.0,0.00029177,2]
[328554262,1717529434641,-1500.0,0.0002918,2]
[328554263,1717529434650,-150.0,0.00029184,2]
[328554264,1717529434660,-150.0,0.00029188,2]
[328554265,1717529434669,-150.0,0.00029197,2]
[328554266,1717529434679,-2900.0,0.000292,10]
[328554267,1717529434689,-1500.0,0.00029206,2]
[328554268,1717529434699,-150.0,0.00029207,2]
[328554269,1717529434708,-1500.0,0.00029209,2]
[328554270,1717529434718,-1500.0,0.00029211,2]
[328554271,1717529434727,-150.0,0.00029211,2]
[328554272,1717529434738,-1000.0,0.00029213,2]
[328554273,1717529434747,-150.0,0.00029216,2]
[328554274,1717529434757,-150.0,0.00029216,2]
[328554275,1717529434766,-150.0,0.0002922,2]
[328554276,1717529434776,-150.0,0.00029221,2]
[328554277,1717529434790,-150.0,0.00029231,2]
[328554278,1717529434799,-183.33225296,0.00029235,2]
[328554279,1717529434809,-150.0,0.00029241,2]
[328554280,1717529434820,-150.0,0.00029246,2]
[328554281,1717529434831,-150.0,0.00029248,2]
[328554282,1717529434841,-150.0,0.00029254,2]
[328554283,1717529434851,-150.0,0.00029259,2]
[328554284,1717529434860,-150.0,0.0002926,2]
[328554285,1717529434871,-150.0,0.00029263,2]
[328554286,1717529434880,-150.0,0.00029269,2]
[328554287,1717529434890,-150.0,0.00029278,2]
[328554288,1717529434900,-150.0,0.00029278,2]
[328554289,1717529434909,-150.0,0.00029285,2]
[328554290,1717529434918,-150.0,0.00029292,2]
[328554291,1717529434928,-150.0,0.00029296,2]
[328554292,1717529434938,-150.0,0.00029297,2]
[328554293,1717529434947,-150.0,0.00029298,2]
[328554294,1717529434957,-3700.0,0.000293,10]
[328554295,1717529434966,-150.0,0.00029303,2]
[328554296,1717529434976,-150.0,0.00029309,2]
[328554297,1717529434986,-211.33604846,0.00029314,2]
[328554298,1717529434995,-150.0,0.00029315,2]
[328554299,1717529435005,-150.0,0.00029318,2]
[328554300,1717529435129,-150.0,0.00029323,2]
[328554301,1717529435139,-1500.0,0.00029328,2]
[328554302,1717529435148,-150.0,0.00029331,2]
[328554303,1717529435158,-150.0,0.00029333,2]
[328554304,1717529435167,-150.0,0.00029333,2]
[328554305,1717529435177,-152.08316283,0.00029335,2]
[328554306,1717529435187,-150.0,0.0002934,2]
[328554307,1717529435197,-151.61550666,0.00029344,2]
[328554308,1717529435206,-150.0,0.00029345,2]
[328554309,1717529435215,-150.0,0.00029347,2]
[328554310,1717529435225,-150.0,0.00029351,2]
[328554311,1717529435234,-151.0,0.00029362,7]
[328554312,1717529435244,-154.03339596,0.00029374,2]
[328554313,1717529435254,-211.33604846,0.00029376,2]
[328554314,1717529435264,-262.61728727,0.00029389,2]
[328554315,1717529435274,-902.30449844,0.00029398,2]
[328554316,1717529435284,-160.0,0.000294,2]
[328554317,1717529435293,-2000.0,0.000294,2]
[328554318,1717529435303,-2000.0,0.000294,2]
[328554319,1717529435312,-347.3423,0.000294,2]
[328554320,1717529435322,-700.0,0.000294,10]
[328554321,1717529435331,-157.63419282,0.00029402,2]
[328554322,1717529435341,-3639.094214,0.0002941,2]
[328554323,1717529435351,-3706.514295,0.0002941,2]
[328554324,1717529435360,-154.77504261,0.00029411,2]
[328554325,1717529435370,-208.0,0.0002943,2]
[328554326,1717529435380,-151.61550666,0.00029431,2]
[328554327,1717529435389,-161.72213921,0.0002946,2]
[328554328,1717529435399,-241.21542436,0.0002946,2]
[328554329,1717529435408,-178.96058679,0.0002946,2]
[328554330,1717529435419,-5500.39977877,0.00029489,2]
[328554331,1717529435429,-174.76024922,0.00029489,2]
[328554332,1717529435439,-262.90819529,0.00029489,2]
[328554333,1717529435448,-266.78142284,0.00029489,2]
[328554334,1717529435458,-1124.42926537,0.00029489,2]
[328554335,1717529435469,-1442.40372715,0.000295,2]
[328554336,1717529435479,-5955.821226,0.000295,2]
[328554337,1717529435489,-700.0,0.000295,10]
[328554338,1717529435499,-150.0,0.000295,6]
[328554339,1717529435509,-440.51973416,0.000295,2]
[328554340,1717529435518,-440.51973416,0.000295,2]
[328554341,1717529435528,-440.51973416,0.000295,2]
[328554342,1717529435538,-440.51973416,0.000295,2]
[328554343,1717529435548,-440.51973416,0.000295,2]
[328554344,1717529435558,-440.51973416,0.000295,2]
[328554345,1717529435568,-440.51973416,0.000295,2]
[328554346,1717529435579,-440.51973416,0.000295,2]
[328554347,1717529435588,-440.51973416,0.000295,2]
[328554348,1717529435598,-440.51973416,0.000295,2]
[328554349,1717529435608,-440.51973416,0.000295,2]
[328554350,1717529435618,-440.51973416,0.000295,2]
[328554351,1717529435629,-440.51973416,0.000295,2]
[328554352,1717529435649,-440.51973416,0.000295,2]
[328554353,1717529435661,-440.51973416,0.000295,2]
[328554354,1717529435672,-440.51973416,0.000295,2]
[328554355,1717529435683,-440.51973416,0.000295,2]
[328554356,1717529435694,-440.51973416,0.000295,2]
[328554357,1717529435705,-440.51973416,0.000295,2]
[328554358,1717529435715,-440.51973416,0.000295,2]
[328554359,1717529435726,-440.51973416,0.000295,2]
[328554360,1717529435737,-440.51973416,0.000295,2]
[328554361,1717529435747,-440.51973416,0.000295,2]
[328554362,1717529435758,-440.51973416,0.000295,2]
[328554363,1717529435768,-440.51973416,0.000295,2]
[328554364,1717529435779,-440.51973416,0.000295,2]
[328554365,1717529435792,-440.51973416,0.000295,2]
[328554366,1717529435804,-440.51973416,0.000295,2]
[328554367,1717529435814,-440.51973416,0.000295,2]
[328554368,1717529435826,-440.51973416,0.000295,2]
[328554369,1717529435838,-440.51973416,0.000295,2]
[328554370,1717529435848,-440.51973416,0.000295,2]
[328554371,1717529435859,-440.51973416,0.000295,2]
[328554372,1717529435872,-440.51973416,0.000295,2]
[328554373,1717529435884,-440.51973416,0.000295,2]
[328554374,1717529435894,-440.51973416,0.000295,2]
[328554375,1717529435904,-440.51973416,0.000295,2]
[328554376,1717529435915,-440.51973416,0.000295,2]
[328554377,1717529435925,-440.51973416,0.000295,2]
[328554378,1717529435936,-440.51973416,0.000295,2]
[328554379,1717529435946,-440.51973416,0.000295,2]
[328554380,1717529435955,-440.51973416,0.000295,2]
[328554381,1717529435965,-440.51973416,0.000295,2]
[328554382,1717529435976,-440.51973416,0.000295,2]
[328554383,1717529435986,-440.51973416,0.000295,2]
[328554384,1717529435997,-440.51973416,0.000295,2]
[328554385,1717529436007,-440.51973416,0.000295,2]
[328554386,1717529436016,-440.51973416,0.000295,2]
[328554387,1717529436026,-440.51973416,0.000295,2]
[328554388,1717529436035,-440.51973416,0.000295,2]
[328554389,1717529436045,-440.51973416,0.000295,2]
[328554390,1717529436054,-440.51973416,0.000295,2]
[328554391,1717529436064,-440.51973416,0.000295,2]
[328554392,1717529436075,-440.51973416,0.000295,2]
[328554393,1717529436085,-440.51973416,0.000295,2]
[328554394,1717529436095,-440.51973416,0.000295,2]
[328554395,1717529436105,-5500.3997787,0.00029526,2]
[328554396,1717529436115,-152.47,0.0002955,2]
[328554397,1717529436125,-152.47,0.0002955,2]
[328554398,1717529436135,-152.47,0.0002955,2]
[328554399,1717529436146,-151.61550666,0.00029558,2]
[328554400,1717529436157,-1163.0,0.00029559,15]
[328554401,1717529436167,-224.4,0.00029559,15]
[328554402,1717529436177,-150.5,0.00029559,15]
[328554403,1717529436187,-150.5,0.00029559,15]
[328554404,1717529436197,-1076.0,0.0002956,15]
[328554405,1717529436207,-150.5,0.0002956,15]
[328554406,1717529436216,-62852.36589717,0.0002956,5]
[328554407,1717529436441,-3718.83553169,0.0002956,5]
[328554412,1717529437972,-612.0,0.00026526,2]
[328554413,1717529437983,-437.0,0.00026526,2]
[328554414,1717529437992,-212.84,0.0002912,10]
[328554415,1717529438002,-440.51973416,0.000295,2]
[328554416,1717529438012,-440.51973416,0.000295,2]
[328554417,1717529438022,-272.54588607,0.000295,2]
[328554418,1717529438034,-167.97384809,0.000295,2]
[328554419,1717529438044,-440.51973416,0.000295,2]
[328554420,1717529438054,-97.31551775,0.000295,2]
[328554421,1717529438066,-343.20421641,0.000295,2]
[328554422,1717529438076,-440.51973416,0.000295,2]
[328554423,1717529438086,-440.51973416,0.000295,2]
[328554424,1717529438095,-440.51973416,0.000295,2]
[328554425,1717529438105,-440.51973416,0.000295,2]
[328554426,1717529438114,-440.51973416,0.000295,2]
[328554427,1717529438124,-440.51973416,0.000295,2]
[328554428,1717529438134,-440.51973416,0.000295,2]
[328554429,1717529438144,-440.51973416,0.000295,2]
[328554430,1717529438154,-440.51973416,0.000295,2]
[328554431,1717529438164,-440.51973416,0.000295,2]
[328554432,1717529438173,-440.51973416,0.000295,2]
[328554433,1717529438183,-440.51973416,0.000295,2]
[328554434,1717529438192,-440.51973416,0.000295,2]
[328554435,1717529438202,-440.51973416,0.000295,2]
[328554436,1717529438211,-440.51973416,0.000295,2]
[328554437,1717529438221,-440.51973416,0.000295,2]
[328554438,1717529438231,-440.51973416,0.000295,2]
[328554439,1717529438240,-440.51973416,0.000295,2]
[328554440,1717529438249,-440.51973416,0.000295,2]
[328554441,1717529438259,-440.51973416,0.000295,2]
[328554442,1717529438268,-440.51973416,0.000295,2]
[328554443,1717529438278,-440.51973416,0.000295,2]
[328554444,1717529438287,-440.51973416,0.000295,2]
[328554445,1717529438298,-440.51973416,0.000295,2]
[328554446,1717529438307,-440.51973416,0.000295,2]
[328554447,1717529438317,-440.51973416,0.000295,2]
[328554448,1717529438328,-440.51973416,0.000295,2]
[328554449,1717529438339,-440.51973416,0.000295,2]
[328554450,1717529438348,-440.51973416,0.000295,2]
[328554451,1717529438359,-440.51973416,0.000295,2]
[328554452,1717529438368,-17514.26622283,0.0002956,5]
[328554453,1717529438381,-572.13400403,0.0002956,5]
[328554454,1717529438405,-440.51973416,0.000295,2]
[328554455,1717529438415,-440.51973416,0.000295,2]
[328554456,1717529438425,-7976.19197168,0.0002956,5]
[328554465,1717529441262,-261.61569197,0.000289,2]
[328554466,1717529441272,-440.51973416,0.000295,2]
[328554467,1717529441282,-440.51973416,0.000295,2]
[328554468,1717529441292,-440.51973416,0.000295,2]
[328554469,1717529441302,-440.51973416,0.000295,2]
[328554470,1717529441312,-440.51973416,0.000295,2]
[328554471,1717529441323,-331.64193353,0.000295,2]
[328554472,1717529441335,-108.87780063,0.000295,2]
[328554473,1717529441345,-440.51973416,0.000295,2]
[328554474,1717529441354,-3386.95946521,0.0002956,5]
[328554475,1717529442586,-939.22901288,0.0002956,5]
[328554476,1717529442598,-11911.30555523,0.0002956,5]
[328554477,1717529442609,-1789.65068256,0.0002956,5]
[328554486,1717529443183,-650.96828781,0.0002956,5]
[328554487,1717529443195,-3829.33041893,0.0002956,5]
[328554488,1717529443501,-1261.0,0.00026526,2]
[328554489,1717529443511,-18757.84477584,0.0002956,5]
[328554490,1717529443523,-1765.648,0.0002956,5]
[328554491,1717529443535,-2930.58798901,0.0002956,5]
[328554606,1717529445948,-438.01199,0.00029558,2]
[328554608,1717529445958,-258.31801,0.0002956,5]
[328554611,1717529445971,-599.27979208,0.0002956,5]
[328554615,1717529446261,-699.7331132,0.0002956,5]
[328554633,1717529646001,6633.16954263,0.000118,2]
[328554639,1717529803686,251.37539195,0.00012999,2]
[328554641,1717529845387,718.75874464,0.00012999,2]
[328554642,1717529845419,490.06503788,0.00012999,2]
[328554643,1717529853315,1182.36741036,0.00012999,2]
[328554644,1717529859603,535.80911183,0.00012999,2]
[328554645,1717529864428,205.45032417,0.00012999,2]
[328554649,1717529919524,308.81927821,0.00012999,2]
[328554651,1717529970534,718.75874464,0.00012999,2]
[328554652,1717529990112,2447.39114283,0.00012999,2]
[328554656,1717530002705,150.0,0.00012999,2]
[328554657,1717530002934,150.0,0.00012999,2]
[328554658,1717530003143,150.0,0.00012999,2]
[328554659,1717530003610,150.0,0.00012999,2]
[328554660,1717530004066,150.0,0.00012999,2]
[328554661,1717530004303,150.0,0.00012999,2]
[328554662,1717530004502,219.84992135,0.00012999,2]
[328554663,1717530076068,1715.4159,0.00012935,2]
[328554664,1717530095650,721.46690904,0.00012999,2]
[328554666,1717530250453,-890.61442381,0.00013,2]
[328554667,1717530250475,-155.0,0.00013846,2]
[328554668,1717530250497,-150.0,0.00013847,2]
[328554669,1717530250518,-3804.38557619,0.00013848,2]
[328554670,1717530251223,-5000.0,0.00013848,2]
[328554671,1717530274861,-410.31414285,0.00013848,2]
[328554672,1717530274882,-1488.74285699,0.00013849,2]
[328554673,1717530274905,-3100.94300016,0.000139,2]
[328555715,1717530632987,-161.67133304,0.000138,2]
[328555716,1717530632997,-150.0,0.00013899,2]
[328555717,1717530633006,-1543.89872461,0.000139,2]
[328555718,1717530633041,-200.62747437,0.000139,2]
[328555719,1717530633050,-161.32979826,0.000139,2]